bitfinex-derivatives/quotes_ETHF0:USTF0_20250629
["timestamp","ask_amount","ask_price","bid_price","bid_amount"]
[1751214614991,0.11013712,2433.3,2433.2,59.68751248]
[1751214618386,0.11013712,2433.3,2433.2,59.67351248]
[1751214620999,0.11013712,2433.3,2433.2,54.67351248]
[1751214621393,0.11013712,2433.3,2433.2,54.65351248]
[1751214621697,0.11013712,2433.3,2433.2,22.59651248]
[1751214621895,0.11013712,2433.3,2433.1,2.0445]
[1751214622096,0.93179712,2433.3,2433.2,32.07]
[1751214622595,0.11013712,2433.3,2432.9,6.23174944]
[1751214622904,0.82176,2433.0,2432.9,9.8848]
[1751214623197,0.82176,2433.0,2432.9,35.2788]
[1751214623400,0.82176,2433.0,2432.9,35.2898]
[1751214624903,0.82176,2433.0,2432.9,36.11159]
[1751214625202,0.82176,2433.0,2432.9,35.2898]
[1751214625702,0.82176,2433.0,2432.9,36.11159]
[1751214625902,2.16620726,2433.0,2432.9,36.11159]
[1751214626704,2.16620726,2433.0,2432.9,9.8848]
[1751214626906,2.16620726,2433.0,2432.9,35.2698]
[1751214627905,2.16620726,2433.0,2432.9,36.09159]
[1751214628704,2.16620726,2433.0,2432.9,35.2698]
[1751214628904,2.16620726,2433.0,2432.9,9.8848]
[1751214629201,2.16620726,2433.0,2432.9,35.2588]
[1751214630898,2.16620726,2433.0,2432.9,32.051]
[1751214631706,2.16620726,2433.0,2432.9,32.038]
[1751214631905,3.50800726,2433.0,2432.9,32.038]
[1751214633704,3.50800726,2433.0,2432.9,6.677]
[1751214633905,3.50800726,2433.0,2432.9,32.024]
[1751214635007,2.16620726,2433.0,2432.9,32.84579]
[1751214635201,2.16620726,2433.0,2432.9,32.024]
[1751214635503,2.16620726,2433.0,2432.9,6.677]
[1751214635703,3.52140726,2433.0,2432.9,32.015]
[1751214636406,3.52140726,2433.0,2432.6,7.59724944]
[1751214636407,0.82186,2432.7,2432.6,9.8858]
[1751214636606,4.3683967,2432.7,2432.5,6.627]
[1751214636802,2.90044726,2432.6,2432.5,6.627]
[1751214637108,3.62544726,2432.6,2432.5,31.959]
[1751214638108,3.62544726,2432.6,2432.5,31.96]
[1751214638610,3.62544726,2432.6,2432.5,31.954]
[1751214638810,3.62544726,2432.6,2432.5,6.627]
[1751214639108,3.62544726,2432.6,2432.2,3.2078]
[1751214639109,0.822,2432.3,2432.2,3.2078]
[1751214639310,0.822,2432.3,2432.2,28.5348]
[1751214639908,2.16031805,2432.3,2432.2,29.35683]
[1751214640111,2.16031805,2432.3,2432.2,28.5348]
[1751214640412,2.16031805,2432.3,2432.2,29.35682]
[1751214640710,2.16031805,2432.3,2432.2,28.5348]
[1751214641509,1.33831805,2432.3,2432.2,29.35682]
[1751214641710,1.33831805,2432.3,2432.2,44.89989304]
[1751214641908,1.33831805,2432.3,2432.2,46.29349304]
[1751214642215,0.82195,2432.5,2432.4,0.82195]
[1751214642415,2.1584585,2432.5,2432.4,26.14595]
[1751214643107,2.1584585,2432.5,2432.4,25.324]
[1751214643314,0.82199,2432.3,2432.2,9.8358]
[1751214643508,0.82199,2432.3,2432.2,35.98283]
[1751214643717,2.1584985,2432.3,2432.2,35.98283]
[1751214644715,0.82199,2432.3,2432.2,35.98283]
[1751214644915,0.82199,2432.3,2432.2,35.1608]
[1751214645116,0.82199,2432.3,2432.2,35.98283]
[1751214645417,0.82199,2432.3,2432.2,35.1608]
[1751214645607,0.82199,2432.3,2432.2,35.98283]
[1751214646803,0.82199,2432.3,2432.2,3.2078]
[1751214647017,2.15605638,2432.3,2432.2,3.2078]
[1751214647214,2.15605638,2432.3,2432.2,28.5158]
[1751214648915,0.82203,2432.2,2432.1,6.628]
[1751214649111,1.50413,2432.2,2432.1,31.936]
[1751214649312,0.82206,2432.1,2432.0,0.6823]
[1751214649611,1.50415,2432.2,2432.1,0.82206]
[1751214650119,0.82206,2432.1,2432.0,8.13337]
[1751214650315,0.82206,2432.1,2432.0,34.87337]
[1751214650516,0.82206,2432.1,2432.0,0.6823]
[1751214650705,0.82206,2432.1,2432.0,32.6093]
[1751214650909,0.82206,2432.1,2432.0,33.43139]
[1751214652620,1.50415,2432.2,2432.1,0.82206]
[1751214652818,1.32860492,2432.2,2432.1,0.82206]
[1751214653014,0.822,2432.3,2432.2,0.82203]
[1751214653215,2.1506475,2432.3,2432.2,25.286]
[1751214653614,2.1506475,2432.3,2432.2,26.10803]
[1751214653820,1.3286475,2432.3,2432.2,26.10803]
[1751214654722,1.3286475,2432.3,2432.2,41.65110304]
[1751214655217,1.3286475,2432.3,2432.2,46.65110304]
[1751214655415,3.2078,2433.0,2432.9,0.82179]
[1751214655915,4.7554504,2433.2,2432.8,28.31894944]
[1751214656218,3.9337504,2433.2,2432.9,0.82177]
[1751214656417,0.82175,2433.1,2433.0,25.294]
[1751214657115,0.82175,2433.1,2433.0,26.11576]
[1751214658215,0.82175,2433.1,2433.0,25.294]
[1751214658722,0.82175,2433.1,2433.0,26.11576]
[1751214659216,0.82172,2433.1,2433.0,26.11574]
[1751214659923,0.82172,2433.1,2433.0,25.294]
[1751214661221,0.82172,2433.1,2433.0,26.11576]
[1751214663524,0.82172,2433.1,2433.0,25.294]
[1751214663725,2.75363,2433.2,2432.8,0.8218]
[1751214663926,0.82176,2433.0,2432.9,26.08479]
[1751214664125,0.82174,2433.1,2433.0,0.82174]
[1751214664324,0.82174,2433.1,2433.0,2.24524]
[1751214664825,0.82174,2433.1,2433.0,1.4235]
[1751214665226,0.82174,2433.1,2433.0,2.24526]
[1751214666625,0.82176,2433.0,2432.9,25.263]
[1751214667227,7.1486504,2433.6,2432.9,46.58436853]
[1751214667526,6.4421504,2433.9,2433.7,0.82149]
[1751214667727,2.12509485,2433.8,2433.6,28.28694944]
[1751214667929,2.12509485,2433.8,2433.7,26.6289]
[1751214667930,0.82149,2433.8,2433.7,26.6289]
[1751214668124,1.30359035,2433.8,2433.7,27.45042]
[1751214668324,1.30359035,2433.8,2433.7,40.56398853]
[1751214668831,0.82123,2434.6,2434.4,0.82128]
[1751214669121,0.6877,2434.7,2434.6,0.82122]
[1751214669329,0.82118,2434.7,2434.6,25.27]
[1751214669530,0.82116,2434.8,2434.6,26.6998]
[1751214670128,0.6832,2435.0,2434.7,3.02394944]
[1751214670317,0.82103,2435.2,2434.9,3.02394944]
[1751214670521,0.82105,2435.1,2435.0,25.295]
[1751214671225,6.89574944,2435.6,2435.0,25.295]
[1751214671524,0.82105,2435.1,2435.0,25.295]
[1751214671933,0.82111,2434.9,2434.8,9.7778]
[1751214672123,0.82111,2434.9,2434.8,35.0668]
[1751214672428,0.82111,2434.9,2434.8,3.2078]
[1751214672626,0.82122,2434.6,2434.5,3.2078]
[1751214672822,0.82122,2434.6,2434.5,28.5098]
[1751214673023,0.82122,2434.6,2434.5,3.2078]
[1751214673218,0.82122,2434.6,2434.2,9.7778]
[1751214673219,0.82132,2434.3,2434.2,9.7778]
[1751214673526,1.9934,2434.9,2434.2,43.47057722]
[1751214673833,7.233,2434.9,2434.5,3.2078]
[1751214674030,0.664,2434.9,2434.5,28.5108]
[1751214674226,0.82122,2434.6,2434.5,28.5108]
[1751214674529,3.2078,2435.0,2434.5,40.5032919]
[1751214674847,0.82118,2434.8,2434.6,2.26011]
[1751214675138,0.82118,2434.7,2434.6,1.4389]
[1751214675636,0.82122,2434.6,2434.5,28.5308]
[1751214675828,0.82122,2434.6,2434.5,35.33752778]
[1751214677035,0.82122,2434.6,2434.5,29.9697]
[1751214677934,0.8212,2434.7,2434.5,29.9697]
[1751214678127,0.8212,2434.7,2434.5,35.33752778]
[1751214678329,0.82122,2434.6,2434.5,35.33752778]
[1751214679240,3.2078,2435.0,2434.5,35.33752778]
[1751214679533,4.02891,2435.0,2434.8,0.82113]
[1751214679738,4.02891,2435.0,2434.9,26.7368]
[1751214680128,4.02891,2435.0,2434.9,32.10462778]
[1751214680438,0.82111,2435.0,2434.9,35.31242778]
[1751214682352,0.82111,2435.0,2434.9,36.13353778]
[1751214682640,0.82111,2435.0,2434.9,35.31242778]
[1751214683437,0.82111,2435.0,2434.9,36.13353778]
[1751214683636,0.82111,2435.0,2434.9,35.31242778]
[1751214683943,0.82108,2435.0,2434.9,36.13350778]
[1751214684144,0.82108,2435.0,2434.9,29.9446]
[1751214684843,0.82108,2435.0,2434.9,28.4978]
[1751214685734,0.82106,2435.1,2435.0,0.82107]
[1751214685935,1.2241627,2435.1,2435.0,2.20618]
[1751214686136,0.82099,2435.3,2435.1,0.82102]
[1751214686335,0.82099,2435.3,2435.2,26.6801]
[1751214686538,2.045648,2435.3,2435.2,27.50111]
[1751214686736,1.224658,2435.3,2435.2,32.86893778]
[1751214686941,0.82095,2435.4,2435.3,0.82098]
[1751214687141,0.82095,2435.4,2435.3,7.56640778]
[1751214687342,2.0456605,2435.4,2435.3,7.56640778]
[1751214688342,2.0456605,2435.4,2435.3,1.3776]
[1751214688545,0.82095,2435.4,2435.3,1.3776]
[1751214688938,0.82098,2435.3,2435.2,28.5028]
[1751214689139,1.50748,2435.3,2435.2,28.5028]
[1751214690846,1.50748,2435.3,2435.2,30.70141]
[1751214691346,1.22668429,2435.3,2435.2,36.06923778]
[1751214691848,1.22668429,2435.3,2435.2,36.75353778]
[1751214692047,1.546,2435.6,2435.4,0.82092]
[1751214692243,0.8209,2435.6,2435.5,25.285]
[1751214692444,2.04815243,2435.6,2435.5,27.48351]
[1751214692743,1.22725243,2435.6,2435.5,27.48351]
[1751214693144,2.04813243,2435.6,2435.5,27.48351]
[1751214693549,1.22725243,2435.6,2435.5,27.48351]
[1751214693750,1.22725243,2435.6,2435.5,30.69131]
[1751214694347,1.22725243,2435.6,2435.5,36.05913778]
[1751214695048,2.04813243,2435.6,2435.5,36.05913778]
[1751214695349,2.04813243,2435.6,2435.5,35.23822778]
[1751214695548,2.04813243,2435.6,2435.5,9.95322778]
[1751214695846,2.04813243,2435.6,2435.5,3.2078]
[1751214696046,2.04813243,2435.6,2435.5,35.0568]
[1751214698252,4.4811929,2435.6,2435.5,35.0568]
[1751214698553,4.4811929,2435.6,2435.5,3.2078]
[1751214698850,4.4811929,2435.6,2435.5,25.274]
[1751214699040,0.82095,2435.4,2435.3,0.82097]
[1751214699240,2.04820243,2435.4,2435.3,34.08707]
[1751214699444,2.04820243,2435.4,2435.3,39.45489778]
[1751214699644,2.04820243,2435.4,2435.3,38.63392778]
[1751214699844,2.04820243,2435.4,2435.3,39.45490778]
[1751214700852,1.22725243,2435.4,2435.3,39.45490778]
[1751214701655,1.22725243,2435.4,2435.3,7.58490778]
[1751214701844,2.04820243,2435.4,2435.3,39.43990778]
[1751214702157,1.22725243,2435.4,2435.3,39.43990778]
[1751214702357,1.22725243,2435.4,2435.3,7.58490778]
[1751214702560,1.22725243,2435.4,2435.3,39.43990778]
[1751214703957,1.22725243,2435.4,2435.3,7.58490778]
[1751214704159,1.22725243,2435.4,2435.3,39.43490778]
[1751214704360,1.22725243,2435.4,2435.3,39.42590778]
[1751214705066,1.22725243,2435.4,2435.3,7.58490778]
[1751214705265,1.22725243,2435.4,2435.3,39.42590778]
[1751214706559,1.22725243,2435.4,2435.3,44.42590778]
[1751214708471,1.22725243,2435.4,2435.3,39.42590778]
[1751214708868,1.22725243,2435.4,2435.3,7.58490778]
[1751214709068,1.22725243,2435.4,2435.3,39.42090778]
[1751214709969,1.22725243,2435.4,2435.3,39.41690778]
[1751214710463,1.22725243,2435.4,2435.3,39.41190778]
[1751214711166,1.22725243,2435.4,2435.3,39.40890778]
[1751214715877,1.22725243,2435.4,2435.3,42.42947437]
[1751214726286,1.22725243,2435.4,2435.3,10.60547437]
[1751214726483,1.22725243,2435.4,2435.3,42.36847437]
[1751214730490,1.22725243,2435.4,2435.3,47.36847437]
[1751214732485,0.7209,2436.0,2435.6,2.05219]
[1751214732691,2.43306047,2436.1,2436.0,0.82074]
[1751214732891,3.5664604,2436.1,2436.0,25.96374]
[1751214733198,4.3871704,2436.1,2436.0,25.96374]
[1751214733892,3.5664604,2436.1,2436.0,25.96374]
[1751214734097,2.45851285,2436.4,2436.0,39.69556659]
[1751214734390,0.7135,2436.9,2436.5,0.82057]
[1751214734591,3.84106659,2436.8,2436.7,3.2078]
[1751214734787,5.25506659,2436.8,2436.7,25.21]
[1751214734987,10.25506659,2436.8,2436.7,25.21]
[1751214735184,7.2345,2436.8,2436.7,25.21]
[1751214735380,2.2345,2436.8,2436.7,25.21]
[1751214735786,2.1269,2436.8,2436.7,25.21]
[1751214735987,0.7129,2436.8,2436.7,35.58307659]
[1751214736186,0.7129,2436.8,2436.7,38.79087659]
[1751214736996,0.7129,2436.8,2436.7,7.04887659]
[1751214737193,0.7129,2436.8,2436.7,38.80587659]
[1751214737387,1.49866,2437.2,2437.1,0.82037]
[1751214737588,2.19136,2437.2,2437.1,26.04437]
[1751214737790,2.19136,2437.2,2437.1,25.224]
[1751214739397,0.82038,2437.1,2437.0,3.02056659]
[1751214739700,0.82044,2437.0,2436.8,3.84102659]
[1751214739891,0.82044,2437.0,2436.9,31.742]
[1751214740492,0.82047,2436.9,2436.7,4.02829]
[1751214740694,2.7583,2437.2,2436.7,3.2078]
[1751214740695,0.82048,2436.8,2436.7,3.2078]
[1751214740893,1.49548,2436.8,2436.7,3.2078]
[1751214741094,1.49548,2436.8,2436.7,34.9478]
[1751214741394,1.49548,2436.8,2436.7,3.2078]
[1751214741793,1.49548,2436.8,2436.7,34.9498]
[1751214743491,1.49548,2436.8,2436.7,34.9388]
[1751214743794,1.49548,2436.8,2436.7,3.2078]
[1751214743997,1.49548,2436.8,2436.7,28.4078]
[1751214744298,1.49548,2436.8,2436.7,28.4058]
[1751214744692,1.49548,2436.8,2436.7,3.2078]
[1751214744893,1.49548,2436.8,2436.7,28.4038]
[1751214745094,1.49548,2436.8,2436.7,3.2078]
[1751214745389,1.49548,2436.8,2436.7,28.4018]
[1751214745590,9.51604659,2436.8,2436.7,3.2078]
[1751214745797,0.82051,2436.7,2436.6,25.194]
[1751214746106,0.82058,2436.5,2436.4,3.2078]
[1751214746300,0.82068,2436.2,2436.1,3.2078]
[1751214746500,0.82068,2436.2,2436.1,28.4008]
[1751214746800,0.82068,2436.2,2436.1,28.4018]
[1751214746999,0.82068,2436.2,2436.1,3.2078]
[1751214747190,7.98818,2436.2,2436.1,28.4038]
[1751214747597,2.98818,2436.2,2436.1,28.4038]
[1751214748501,2.98818,2436.2,2436.1,3.2078]
[1751214748701,2.98818,2436.2,2436.1,28.4038]
[1751214748901,0.82071,2436.1,2436.0,6.53]
[1751214749200,0.82071,2436.1,2436.0,31.739]
[1751214753604,0.82075,2436.0,2435.9,53.822]
[1751214753792,0.82078,2435.9,2435.8,3.2078]
[1751214753997,0.82078,2435.9,2435.8,34.9268]
[1751214754806,0.82078,2435.9,2435.8,3.2078]
[1751214754999,0.82078,2435.9,2435.8,28.3958]
[1751214756108,0.82078,2435.9,2435.8,28.3908]
[1751214757004,0.82078,2435.9,2435.8,3.2078]
[1751214757404,2.0518,2436.1,2435.7,6.531]
[1751214757405,0.82081,2435.8,2435.7,6.531]
[1751214757605,1.49101,2435.8,2435.7,31.708]
[1751214758108,0.82088,2435.6,2435.5,3.2078]
[1751214758407,0.82088,2435.6,2435.5,34.9158]
[1751214759504,0.82088,2435.6,2435.5,34.9198]
[1751214760807,0.82088,2435.6,2435.5,36.2714]
[1751214763713,0.82088,2435.6,2435.5,11.0904]
[1751214764106,0.82088,2435.6,2435.5,36.2554]
[1751214766005,0.82088,2435.6,2435.5,40.09688659]
[1751214767004,0.82088,2435.6,2435.5,39.27596659]
[1751214767308,0.82088,2435.6,2435.5,40.09688659]
[1751214768703,0.82088,2435.6,2435.5,39.27596659]
[1751214770008,0.82088,2435.6,2435.5,40.09688659]
[1751214771808,0.82088,2435.6,2435.5,36.88908659]
[1751214772009,0.82088,2435.6,2435.5,40.09688659]
[1751214773906,0.82088,2435.6,2435.5,36.2374]
[1751214774306,0.82088,2435.6,2435.5,28.3378]
[1751214774512,1.88766737,2435.6,2435.5,28.3378]
[1751214774906,1.06678737,2435.6,2435.5,31.35836659]
[1751214775101,1.06678737,2435.6,2435.5,33.54267659]
[1751214775307,1.88766737,2435.6,2435.5,32.72176659]
[1751214775812,1.88766737,2435.6,2435.5,33.54267659]
[1751214776006,1.88766737,2435.6,2435.5,32.72176659]
[1751214776217,1.88766737,2435.6,2435.5,29.7012]
[1751214778811,1.88766737,2435.6,2435.5,28.3378]
[1751214781114,1.88766737,2435.6,2435.5,30.60502]
[1751214781512,1.06678737,2435.6,2435.5,33.62558659]
[1751214781713,1.88766737,2435.6,2435.5,33.62558659]
[1751214781919,1.88766737,2435.6,2435.5,32.80466659]
[1751214782219,1.88766737,2435.6,2435.5,35.08397557]
[1751214782520,1.88766737,2435.6,2435.5,34.26305557]
[1751214783220,1.06678737,2435.6,2435.5,35.08397557]
[1751214785115,1.88766737,2435.6,2435.5,35.08397557]
[1751214785315,1.06678737,2435.6,2435.5,35.08397557]
[1751214787821,1.88766737,2435.6,2435.5,9.95397557]
[1751214788014,1.88766737,2435.6,2435.5,40.80705557]
[1751214788521,1.88766737,2435.6,2435.5,40.77805557]
[1751214788722,1.06678737,2435.6,2435.5,41.59897557]
[1751214788919,1.06678737,2435.6,2435.5,9.95397557]
[1751214789223,1.06678737,2435.6,2435.5,41.59897557]
[1751214792921,4.02853,2436.1,2436.0,0.82075]
[1751214793223,4.02853,2436.1,2436.0,25.94975]
[1751214793224,5.09401935,2436.1,2436.0,25.94975]
[1751214793522,5.09401935,2436.1,2436.0,25.129]
[1751214793723,5.09401935,2436.1,2436.0,26.5994]
[1751214793925,5.09401935,2436.1,2436.0,27.42015]
[1751214794320,5.09401935,2436.1,2436.0,26.5994]
[1751214794515,1.88621935,2436.1,2436.0,27.42015]
[1751214794921,1.06548935,2436.1,2436.0,28.87853898]
[1751214795417,1.88619935,2436.1,2436.0,28.87853898]
[1751214796323,1.88619935,2436.1,2436.0,28.05778898]
[1751214797125,1.88619935,2436.1,2436.0,26.58738898]
[1751214797525,1.88619935,2436.1,2436.0,25.129]
[1751214798423,0.82075,2436.0,2435.9,3.2078]
[1751214798627,1.88623935,2436.0,2435.9,29.79318898]
[1751214799726,1.88623935,2436.0,2435.9,32.02226898]
[1751214800027,1.88623935,2436.0,2435.9,31.20148898]
[1751214801729,1.88623935,2436.0,2435.9,28.3348]
[1751214802523,1.88623935,2436.0,2435.9,29.15558]
[1751214802930,1.88623935,2436.0,2435.9,28.3348]
[1751214804126,1.88623935,2436.0,2435.9,29.15558]
[1751214804328,1.88623935,2436.0,2435.9,28.3348]
[1751214804928,1.88623935,2436.0,2435.9,31.35536659]
[1751214805130,1.88623935,2436.0,2435.9,33.60824659]
[1751214806132,1.88623935,2436.0,2435.9,35.06663557]
[1751214806316,1.06548935,2436.0,2435.9,35.06663557]
[1751214806523,1.88623935,2436.0,2435.9,35.06663557]
[1751214806724,1.06548935,2436.0,2435.9,35.06663557]
[1751214810524,1.06548935,2436.0,2435.9,6.91906898]
[1751214810830,1.06548935,2436.0,2435.9,34.8458]
[1751214810831,1.88623935,2436.0,2435.9,34.8458]
[1751214812230,1.88623935,2436.0,2435.9,3.2078]
[1751214812429,1.88623935,2436.0,2435.9,28.3288]
[1751214812924,3.94293935,2436.0,2435.9,28.3288]
[1751214813129,2.87745,2436.0,2435.9,28.3288]
[1751214814434,3.93368303,2436.0,2435.9,28.3288]
[1751214814826,3.93348732,2436.0,2435.9,28.3288]
[1751214815829,3.93348732,2436.0,2435.9,3.2078]
[1751214818035,0.82088,2435.6,2435.5,3.2078]
[1751214818234,0.82088,2435.6,2435.5,11.18218898]
[1751214818430,0.82088,2435.6,2435.5,36.30318898]
[1751214818834,1.87641519,2435.6,2435.5,36.30318898]
[1751214820140,1.87641519,2435.6,2435.5,33.09538898]
[1751214820340,1.87641519,2435.6,2435.5,36.30318898]
[1751214820541,1.87641519,2435.6,2435.5,37.12410898]
[1751214821442,0.82088,2435.6,2435.5,37.12410898]
[1751214821935,1.50025,2435.8,2435.6,0.82086]
[1751214822136,1.50021,2435.8,2435.7,25.121]
[1751214822437,2.5560126,2435.8,2435.7,25.121]
[1751214825039,2.5560126,2435.8,2435.7,26.5386]
[1751214825244,1.8766126,2435.8,2435.7,26.5386]
[1751214825644,1.8766126,2435.8,2435.7,27.2609]
[1751214826142,1.8766126,2435.8,2435.7,31.10231659]
[1751214826344,1.8766126,2435.8,2435.7,25.8433]
[1751214827043,1.8766126,2435.8,2435.7,26.66415]
[1751214827239,1.8766126,2435.8,2435.7,27.303]
[1751214827846,1.8766126,2435.8,2435.7,28.12385]
[1751214828244,1.0558026,2435.8,2435.7,28.12385]
[1751214829552,1.8766126,2435.8,2435.7,29.58223898]
[1751214830249,1.8766126,2435.8,2435.7,28.76138898]
[1751214830449,1.8766126,2435.8,2435.7,29.58223898]
[1751214830650,1.0558026,2435.8,2435.7,29.58223898]
[1751214831249,1.8766126,2435.8,2435.7,29.58223898]
[1751214831451,1.8766126,2435.8,2435.7,28.12385]
[1751214834048,1.8766126,2435.8,2435.7,27.303]
[1751214834237,1.8766126,2435.8,2435.7,28.12385]
[1751214834942,1.0558026,2435.8,2435.7,28.12385]
[1751214835141,1.0558026,2435.8,2435.7,29.58223898]
[1751214835949,1.8766126,2435.8,2435.7,29.58223898]
[1751214836752,1.8766126,2435.8,2435.7,3.64038898]
[1751214836949,1.8766126,2435.8,2435.7,27.29768898]
[1751214837245,1.8766126,2435.8,2435.7,25.8393]
[1751214837452,1.8766126,2435.8,2435.7,25.117]
[1751214837643,0.82085,2435.7,2435.6,3.02056659]
[1751214837844,1.8766526,2435.7,2435.6,29.59495557]
[1751214838043,1.8766526,2435.7,2435.6,30.41583557]
[1751214838246,1.8766526,2435.7,2435.6,29.59495557]
[1751214838750,1.8766526,2435.7,2435.6,30.94235557]
[1751214838942,1.8766526,2435.7,2435.6,31.76323557]
[1751214839151,1.0558026,2435.7,2435.6,31.76323557]
[1751214842056,0.82082,2435.8,2435.7,0.82085]
[1751214842256,0.82091,2435.5,2435.4,0.6972]
[1751214842455,3.02056659,2435.5,2435.2,4.5556]
[1751214842662,0.82098,2435.3,2435.2,3.2078]
[1751214842847,3.84154659,2435.3,2435.2,3.2078]
[1751214843158,0.82105,2435.1,2435.0,6.513]
[1751214843359,0.82105,2435.1,2435.0,31.627]
[1751214844354,3.02056659,2435.3,2434.8,3.2078]
[1751214844555,0.82112,2434.9,2434.8,28.3218]
[1751214847659,0.82112,2434.9,2434.8,3.2078]
[1751214848060,1.50002,2434.9,2434.8,3.2078]
[1751214848751,5.75233659,2434.9,2434.6,25.116]
[1751214848951,0.6789,2434.9,2434.7,3.02056659]
[1751214849263,0.82115,2434.8,2434.7,3.02056659]
[1751214849451,0.82115,2434.8,2434.7,4.45506659]
[1751214850359,3.9224,2435.0,2434.7,5.91345557]
[1751214850560,5.65380381,2435.6,2434.9,3.84168659]
[1751214850864,0.82102,2435.2,2435.1,3.02056659]
[1751214851059,1.8734433,2435.2,2435.1,4.45506659]
[1751214852064,1.0524233,2435.2,2435.1,5.27611659]
[1751214852268,1.0524233,2435.2,2435.1,3.71393898]
[1751214852664,2.44600381,2435.7,2435.4,0.82091]
[1751214852861,1.8728807,2435.6,2435.5,30.96756659]
[1751214853466,1.8728807,2435.6,2435.5,32.42595557]
[1751214861384,1.8728807,2435.6,2435.5,29.40538898]
[1751214861976,1.8728807,2435.6,2435.4,3.2078]
[1751214862182,1.0520007,2435.5,2435.1,3.2078]
[1751214862384,0.82102,2435.2,2435.1,11.1196]
[1751214862584,0.82102,2435.2,2435.1,37.68898898]
[1751214862784,0.82102,2435.2,2435.1,37.68798898]
[1751214864083,0.82101,2435.3,2435.1,41.52960557]
[1751214865184,0.82102,2435.2,2435.1,41.52960557]
[1751214866179,0.82102,2435.2,2435.1,40.70855557]
[1751214866684,0.82102,2435.2,2435.1,41.52960557]
[1751214867585,0.82102,2435.2,2435.1,40.70855557]
[1751214867786,0.82102,2435.2,2435.1,41.52960557]
[1751214870191,0.82102,2435.2,2435.1,38.32180557]
[1751214870391,0.82102,2435.2,2435.1,41.52960557]
[1751214871190,0.82102,2435.2,2435.1,11.1196]
[1751214871493,0.82102,2435.2,2435.1,36.2276]
[1751214871878,0.82102,2435.2,2435.1,39.24816659]
[1751214872088,0.82102,2435.2,2435.1,40.06921659]
[1751214872893,1.3913,2435.5,2435.2,0.821]
[1751214873189,0.82101,2435.3,2435.2,2.236]
[1751214873378,1.88529301,2435.3,2435.2,27.344]
[1751214873581,1.88529301,2435.3,2435.2,26.523]
[1751214879391,1.88529301,2435.3,2435.2,27.34402]
[1751214880092,1.88529301,2435.3,2435.2,26.523]
[1751214880393,1.88529301,2435.3,2435.2,27.34402]
[1751214881489,1.88529301,2435.3,2435.2,26.523]
[1751214881695,1.88529301,2435.3,2435.2,27.34402]
[1751214882683,1.88529301,2435.3,2435.2,28.80240898]
[1751214883289,1.88645507,2435.3,2435.2,28.80240898]
[1751214883489,1.06544507,2435.3,2435.2,28.80240898]
[1751214883698,1.06544507,2435.3,2435.2,29.48950898]
[1751214889097,3.26680381,2435.9,2435.8,0.82081]
[1751214889300,4.33060344,2435.9,2435.8,25.92081]
[1751214889891,4.33060344,2435.9,2435.8,25.1]
[1751214891101,3.50980344,2435.9,2435.8,25.099]
[1751214891397,1.06379963,2435.9,2435.8,25.099]
[1751214891597,0.82088,2435.6,2435.5,3.2078]
[1751214891797,0.82088,2435.6,2435.5,28.3058]
[1751214892004,1.88467963,2435.6,2435.5,28.3058]
[1751214892187,3.28167963,2435.6,2435.5,28.3058]
[1751214893995,3.28167963,2435.6,2435.5,32.14727659]
[1751214894401,2.59347963,2435.6,2435.5,32.14727659]
[1751214894603,2.59347963,2435.6,2435.5,31.32636659]
[1751214894905,2.59347963,2435.6,2435.5,28.3038]
[1751214895498,0.82098,2435.3,2435.2,1.4557]
[1751214895696,0.82098,2435.3,2435.2,34.51108898]
[1751214896504,0.82098,2435.3,2435.2,3.73510898]
[1751214896802,0.82098,2435.3,2435.2,33.87272]
[1751214897003,1.88098915,2435.3,2435.2,2.27672]
[1751214897197,1.88098915,2435.3,2435.2,33.87272]
[1751214898002,1.88098915,2435.3,2435.2,33.0517]
[1751214898602,1.88098915,2435.3,2435.2,6.501]
[1751214898808,0.82102,2435.2,2435.1,3.2078]
[1751214899101,1.48582,2435.2,2435.1,28.3018]
[1751214899301,2.54580155,2435.2,2435.1,28.3018]
[1751214903500,2.54580155,2435.2,2435.1,3.2078]
[1751214903699,0.82112,2434.9,2434.8,9.7088]
[1751214903899,0.82112,2434.9,2434.8,34.8008]
[1751214904607,0.82112,2434.9,2434.8,9.7088]
[1751214904808,0.82112,2434.9,2434.8,34.8008]
[1751214905007,0.82112,2434.9,2434.8,35.62195]
[1751214905801,0.82112,2434.9,2434.8,10.52995]
[1751214906001,0.82112,2434.9,2434.8,35.62295]
[1751214906402,1.88082468,2434.9,2434.8,35.62295]
[1751214907111,1.88082468,2434.9,2434.8,34.8018]
[1751214907514,1.88082468,2434.9,2434.8,3.2078]
[1751214907713,1.88082468,2434.9,2434.8,28.2988]
[1751214908715,0.82115,2434.8,2434.7,8.03137]
[1751214908911,0.82115,2434.8,2434.7,34.56837]
[1751214910113,0.82115,2434.8,2434.7,37.58893659]
[1751214910709,0.82115,2434.8,2434.7,36.76776659]
[1751214911114,0.82115,2434.8,2434.7,37.58894659]
[1751214911714,0.82115,2434.8,2434.7,36.76776659]
[1751214911914,0.82115,2434.8,2434.7,37.58894659]
[1751214912514,0.82115,2434.8,2434.7,11.67576659]
[1751214912716,0.82115,2434.8,2434.7,6.502]
[1751214912905,0.82115,2434.8,2434.7,31.593]
[1751214913109,0.82115,2434.8,2434.7,6.502]
[1751214913414,0.82115,2434.8,2434.7,31.592]
[1751214913820,2.22015,2434.8,2434.7,31.592]
[1751214915111,0.82122,2434.6,2434.5,3.9428]
[1751214915316,0.82122,2434.6,2434.5,28.2978]
[1751214916008,2.05311,2434.6,2434.1,10.3829]
[1751214916209,2.05311,2434.6,2434.1,12.66267898]
[1751214916210,0.82135,2434.2,2434.1,12.66267898]
[1751214916410,0.82135,2434.2,2434.1,39.13417898]
[1751214916607,0.82135,2434.2,2434.1,38.31278898]
[1751214917126,0.82135,2434.2,2434.1,39.13617898]
[1751214917417,0.82135,2434.2,2434.1,38.31478898]
[1751214918717,0.82135,2434.2,2434.1,11.0833]
[1751214919011,0.82135,2434.2,2434.1,36.1733]
[1751214919218,0.82135,2434.2,2434.1,11.0833]